[Event "3rd Rio Open-Blitz 2024"]
[Site "Rio de Janeiro"]
[Date "2024.04.27"]
[Round "4.3"]
[White "Oliveira, Fernando Ventura"]
[Black "Librelato, Kathie Goulart"]
[Result "1/2-1/2"]
[ECO "E90"]
[WhiteElo "2044"]
[BlackElo "2165"]
[Annotator "NA RC"]
[PlyCount "81"]
[EventDate "2024.04.12"]
[EventType "swiss"]
[EventCountry "BRA"]
[SourceTitle "playchess.com"]
[Source "ChessBase"]
[SourceQuality "1"]
[TimeControl "180+2"]

1. d4 {[%emt 0:00:02]} Nf6 {[%emt 0:00:01]} 2. Nf3 {[%emt 0:00:01]} g6 {[%emt 0:00:00]} 3. c4 {[%emt 0:00:01]} Bg7 {[%emt 0:00:01]} 4. Nc3 {[%emt 0:00:02]} O-O {[%emt 0:00:02]} 5. e4 {[%emt 0:00:01]} d6 {[%emt 0:00:01]} 6. h3 {[%emt 0:00:01]} e5 {[%emt 0:00:04]} 7. dxe5 {[%emt 0:00:01]} dxe5 {[%emt 0:00:01]} 8. Qxd8 {[%emt 0:00:02]} Rxd8 {[%emt 0:00:01]} 9. Nd5 {[%emt 0:00:01]} Nxd5 {[%emt 0:00:11]} 10. cxd5 {[%emt 0:00:01]} c6 {[%emt 0:00:06]} 11. Bc4 {[%emt 0:00:02]} cxd5 {[%emt 0:00:07]} 12. Bxd5 {[%emt 0:00:03]} Nc6 {[%emt 0:00:05]} 13. Bg5 {[%emt 0:00:05]} Re8 {[%emt 0:00:04]} 14. O-O-O {[%emt 0:00:04]} Nd4 {[%emt 0:00:25]} 15. Nxd4 {[%emt 0:00:31]} exd4 {[%emt 0:00:02]} 16. f4 {[%emt 0:00:12]} Be6 {[%emt 0:00:14]} 17. Bxe6 {[%emt 0:00:07]} Rxe6 {[%emt 0:00:02]} 18. e5 {[%emt 0:00:06]} h6 {[%emt 0:00:08]} 19. Bh4 {[%emt 0:00:03]} g5 {[%emt 0:00:03]} 20. fxg5 {[%emt 0:00:14]} Bxe5 {[%emt 0:00:05]} 21. gxh6 {[%emt 0:00:04]} Rxh6 {[%emt 0:00:41]} 22. Bf2 {[%emt 0:00:08]} Rd8 {[%emt 0:00:21]} 23. Rd3 {[%emt 0:00:11]} Rf6 {[%emt 0:00:20]} 24. Bh4 {[%emt 0:00:01]} Rc6+ {[%emt 0:00:01]} 25. Kb1 {[%emt 0:00:05]} Rdc8 {[%emt 0:00:01]} 26. Re1 {[%emt 0:00:02]} Rc2 {[%emt 0:00:10]} 27. a3 {[%emt 0:00:05]} f6 {[%emt 0:00:04]} 28. Rf1 {[%emt 0:00:02]} Kg7 {[%emt 0:00:07]} 29. g4 {[%emt 0:00:03]} Rh2 {[%emt 0:00:11]} 30. g5 {[%emt 0:00:08]} Rcc2 {[%emt 0:00:02]} 31. gxf6+ {[%emt 0:00:04]} Kf7 {[%emt 0:00:01]} 32. Rb3 {[%emt 0:00:12]} d3 {[%emt 0:00:01]} 33. Rxb7+ {[%emt 0:00:23]} Kf8 {[%emt 0:00:00]} 34. Rd1 {[%emt 0:00:10]} Rxb2+ {[%emt 0:00:05]} 35. Rxb2 {[%emt 0:00:01]} Rxb2+ {[%emt 0:00:01]} 36. Kc1 {[%emt 0:00:02]} Rc2+ {[%emt 0:00:12]} 37. Kb1 {[%emt 0:00:01]} Rb2+ {[%emt 0:00:01]} 38. Kc1 {[%emt 0:00:01]} Rc2+ {[%emt 0:00:07]} 39. Kb1 {[%emt 0:00:00]} Rb2+ {[%emt 0:00:02]} 40. Kc1 {[%emt 0:00:01]} Rc2+ {[%emt 0:00:01]} 41. Kb1 {[%emt 0:00:04]} 1/2-1/2

[Event "3rd Rio Open-Blitz 2024"]
[Site "Rio de Janeiro"]
[Date "2024.04.27"]
[Round "4.4"]
[White "Viana, Dirceu"]
[Black "Labussiere, Yago"]
[Result "1/2-1/2"]
[ECO "A12"]
[WhiteElo "2172"]
[BlackElo "2184"]
[Annotator "NA RC"]
[PlyCount "106"]
[EventDate "2024.04.12"]
[EventType "swiss"]
[EventCountry "BRA"]
[SourceTitle "playchess.com"]
[Source "ChessBase"]
[SourceQuality "1"]
[TimeControl "180+2"]

1. g3 {[%emt 0:00:01]} d5 {[%emt 0:00:01]} 2. Bg2 {[%emt 0:00:01]} Nf6 {[%emt 0:00:01]} 3. Nf3 {[%emt 0:00:12]} Bf5 {[%emt 0:00:02]} 4. b3 {[%emt 0:00:01]} e6 {[%emt 0:00:00]} 5. Bb2 {[%emt 0:00:01]} h6 {[%emt 0:00:01]} 6. c4 {[%emt 0:00:03]} c6 {[%emt 0:00:01]} 7. O-O {[%emt 0:00:04]} Be7 {[%emt 0:00:00]} 8. d3 {[%emt 0:00:02]} O-O {[%emt 0:00:02]} 9. Nbd2 {[%emt 0:00:03]} a5 {[%emt 0:00:04]} 10. a3 {[%emt 0:00:06]} Bh7 {[%emt 0:00:02]} 11. Ra2 {[%emt 0:00:01]} Nbd7 {[%emt 0:00:12]} 12. Qa1 {[%emt 0:00:02]} Re8 {[%emt 0:00:06]} 13. Ne5 {[%emt 0:00:02]} Nxe5 {[%emt 0:00:02]} 14. Bxe5 {[%emt 0:00:01]} Bf8 {[%emt 0:00:18]} 15. Rc1 {[%emt 0:01:00]} Nd7 {[%emt 0:00:01]} 16. Bc3 {[%emt 0:00:15]} Qb6 {[%emt 0:00:20]} 17. b4 {[%emt 0:00:19]} axb4 {[%emt 0:00:04]} 18. axb4 {[%emt 0:00:02]} Rxa2 {[%emt 0:00:01]} 19. Qxa2 {[%emt 0:00:01]} Nb8 {[%emt 0:01:08]} 20. Qa5 {[%emt 0:00:03]} Qxa5 {[%emt 0:00:17]} 21. bxa5 {[%emt 0:00:01]} Na6 {[%emt 0:00:30]} 22. Rb1 {[%emt 0:00:03]} Re7 {[%emt 0:00:01]} 23. Kf1 {[%emt 0:00:11]} Rd7 {[%emt 0:00:02]} 24. cxd5 {[%emt 0:00:03]} cxd5 {[%emt 0:00:14]} 25. Bd4 {[%emt 0:00:30]} Bb4 {[%emt 0:00:03]} 26. Nb3 {[%emt 0:00:05]} f6 {[%emt 0:00:01]} 27. Rc1 {[%emt 0:00:05]} Kf7 {[%emt 0:00:01]} 28. Bb6 {[%emt 0:00:09]} Ke7 {[%emt 0:00:10]} 29. Rc8 {[%emt 0:00:03]} Bf5 {[%emt 0:00:04]} 30. f4 {[%emt 0:00:10]} e5 {[%emt 0:00:04]} 31. fxe5 {[%emt 0:00:04]} fxe5 {[%emt 0:00:02]} 32. Rg8 {[%emt 0:00:03]} Kf7 {[%emt 0:00:01]} 33. Ra8 {[%emt 0:00:12]} Be6 {[%emt 0:00:01]} 34. Nc1 {[%emt 0:00:08]} Ke7 {[%emt 0:00:13]} 35. Rh8 {[%emt 0:00:02]} Bf7 {[%emt 0:00:00]} 36. Rh7 {[%emt 0:00:01]} Kf6 {[%emt 0:00:00]} 37. Bh3 {[%emt 0:00:01]} Be6 {[%emt 0:00:00]} 38. Bxe6 Kxe6 {[%emt 0:00:00]} 39. Rh8 {[%emt 0:00:03]} Bd2 {[%emt 0:00:03]} 40. Nb3 {[%emt 0:00:00]} Bb4 {[%emt 0:00:01]} 41. Rc8 {[%emt 0:00:02]} Ke7 {[%emt 0:00:10]} 42. Kg2 {[%emt 0:00:03]} Kf7 {[%emt 0:00:00]} 43. e4 {[%emt 0:00:01]} dxe4 {[%emt 0:00:00]} 44. dxe4 {[%emt 0:00:01]} Rd3 {[%emt 0:00:00]} 45. Nc5 {[%emt 0:00:01]} Nxc5 {[%emt 0:00:01]} 46. Bxc5 {[%emt 0:00:01]} Bxa5 {[%emt 0:00:09]} 47. Rb8 {[%emt 0:00:02]} Rd7 {[%emt 0:00:00]} 48. Kf3 {[%emt 0:00:02]} Bd8 {[%emt 0:00:01]} 49. h4 {[%emt 0:00:02]} Bf6 {[%emt 0:00:00]} 50. Rf8+ {[%emt 0:00:02]} Ke6 {[%emt 0:00:02]} 51. Rb8 {[%emt 0:00:00]} Kf7 {[%emt 0:00:01]} 52. Rf8+ {[%emt 0:00:01]} Kg6 {[%emt 0:00:01]} 53. Kg4 {[%emt 0:00:03]} h5+ {[%emt 0:00:00]} 1/2-1/2

[Event "3rd Rio Open-Blitz 2024"]
[Site "Rio de Janeiro"]
[Date "2024.04.27"]
[Round "4.5"]
[White "Fier, Alexandr"]
[Black "Dias, Matheus Braga"]
[Result "1-0"]
[ECO "B27"]
[WhiteElo "2566"]
[BlackElo "1960"]
[Annotator "TA"]
[PlyCount "77"]
[EventDate "2024.04.12"]
[EventType "swiss"]
[EventCountry "BRA"]
[SourceTitle "playchess.com"]
[Source "ChessBase"]
[SourceQuality "1"]
[TimeControl "180+2"]

{[%evp 9,77,16,24,12,67,62,331,336,360,345,385,371,363,302,429,427,494,462,588,596,587,594,567,593,631,622,716,664,710,702,713,697,688,634,629,613,622,627,635,635,721,696,683,637,620,458,692,677,1153,1152,1042,524,516,467,739,551,788,789,1008,997,1129,1099,1391,1356,29990,29991,29992,29993,29994,29993]} 1. e4 {[%emt 0:00:01]} c5 {[%emt 0:00:02]} 2. Nf3 {[%emt 0:00:01]} g6 {[%emt 0:00:03]} 3. d4 {[%emt 0:00:01]} cxd4 {[%emt 0:00:01]} 4. Qxd4 {[%emt 0:00:01]} Nf6 {[%emt 0:00:02]} 5. Nc3 {[%emt 0:00:01]} Nc6 {[%emt 0:00:01]} 6. Qa4 {[%emt 0:00:01] With the idea e5.} Bg7 {[%emt 0:00:11]} (6... d6 $11) 7. e5 $14 {[%emt 0:00:01] White is more active.} Ng4 {[%emt 0:00:04][%mdl 8192]} 8. Qxg4 $18 {[%emt 0:00:02] White has a decisive advantage.} O-O {[%emt 0:00:03]} 9. Qh4 {[%emt 0:00:00]} d6 {[%emt 0:00:02]} 10. exd6 {[%emt 0:00:04]} Qxd6 {[%emt 0:00:02]} 11. Be2 {[%emt 0:00:03]} e5 {[%emt 0:00:06]} (11... Qb4 $142 12. O-O Qxh4 13. Nxh4 Nb4) 12. O-O {[%emt 0:00:03]} Be6 {[%emt 0:00:06]} 13. Ng5 {[%emt 0:00:02][%csl Gg5][%cal Rh4h7] [#]} h6 {[%emt 0:00:07]} 14. Nxe6 {[%emt 0:00:02]} Qxe6 {[%emt 0:00:06]} 15. Bxh6 {[%emt 0:00:01]} Nd4 {[%emt 0:00:06]} 16. Bd3 {[%emt 0:00:05]} Rac8 {[%emt 0:00:10]} 17. Rae1 {[%emt 0:00:01]} Rfd8 {[%emt 0:00:09]} 18. Bxg7 {[%emt 0:00:05]} Kxg7 {[%emt 0:00:02]} 19. f4 {[%emt 0:00:01]} Qb6 {[%emt 0:00:10]} 20. Kh1 {[%emt 0:00:04]} (20. Rxe5 $2 {loses.} Nf3+ (20... Qxb2 $2 {is the wrong capture.} 21. Bxg6 Rh8 22. Qe7 $18) 21. Kh1 Nxh4 $19) 20... Rh8 {[%emt 0:00:04]} 21. Qg3 {[%emt 0:00:03]} Rxh2+ {[%emt 0:00:15]} 22. Qxh2 {[%emt 0:00:14]} Rh8 {[%emt 0:00:01]} 23. Qxh8+ {[%emt 0:00:01]} Kxh8 {[%emt 0:00:02]} 24. fxe5 {[%emt 0:00:02]} Qd8 {[%emt 0:00:16]} 25. Rf4 {[%emt 0:00:07] Wards off Qh4+} (25. Rxf7 $2 Qh4+ 26. Kg1 Qxe1+ 27. Kh2 Kg8 $17 (27... Qxe5+ $2 28. g3 $17)) 25... Ne6 {[%emt 0:00:06]} 26. Rg4 {[%emt 0:00:07]} (26. Rxf7 $2 {perishes.} Qh4+ 27. Kg1 Qxe1+ 28. Kh2 Ng5 $19 (28... Qxe5+ $2 29. g3 $19)) 26... Kg7 {[%emt 0:00:04]} 27. Ne4 {[%emt 0:00:01]} Qd4 {[%emt 0:00:18]} (27... Qa5 $142) 28. Nf6 {[%emt 0:00:08]} Qf2 {[%emt 0:00:04]} 29. Rf1 {[%emt 0:00:03]} Qe3 {[%emt 0:00:05]} 30. Ne4 {[%emt 0:00:15]} Qh6+ {[%emt 0:00:08]} 31. Kg1 {[%emt 0:00:01] [#] Threatens to win with Rg3.} Qe3+ {[%emt 0:00:02]} (31... Qh5 $142) 32. Rf2 {[%emt 0:00:01]} Qc1+ {[%emt 0:00:16]} 33. Bf1 {[%emt 0:00:03]} Qxb2 {[%emt 0:00:04]} 34. Nd6 {[%emt 0:00:08]} Qb6 {[%emt 0:00:10]} 35. Nxf7 {[%emt 0:00:05]} Nd4 {[%emt 0:00:14]} 36. Nd6 {[%emt 0:00:09] And now Bd3 would win.} Nxc2 {[%emt 0:00:07]} 37. Bd3 {[%emt 0:00:09][%csl LRc2,LRg6] White mates.} Ne1 {[%emt 0:00:10]} 38. Rxg6+ {[%emt 0:00:03]} Kh7 {[%emt 0:00:05]} 39. Bf5 {[%emt 0:00:05] Black got outplayed after the opening.   Weighted Error Value: White=0.17 (very precise) /Black=0.65.  Loses game:     	---       	Black=1      Mistake:       	---       	Black=3      Inaccurate:     	---       	Black=2      OK:         	White=4     	---        Best:        	White=2     	---} 1-0

[Event "3rd Rio Open-Blitz 2024"]
[Site "Rio de Janeiro"]
[Date "2024.04.27"]
[Round "4.6"]
[White "Deus Filho, Joaquim de"]
[Black "Macagno, Sergio"]
[Result "1-0"]
[ECO "C22"]
[WhiteElo "1884"]
[BlackElo "2296"]
[Annotator "NA RC"]
[PlyCount "31"]
[EventDate "2024.04.12"]
[EventType "swiss"]
[EventCountry "BRA"]
[SourceTitle "playchess.com"]
[Source "ChessBase"]
[SourceQuality "1"]
[TimeControl "180+2"]

1. e4 {[%emt 0:00:18]} e5 {[%emt 0:00:01]} 2. d4 {[%emt 0:00:01]} exd4 {[%emt 0:00:02]} 3. Qxd4 {[%emt 0:00:02]} Nc6 {[%emt 0:00:03]} 4. Qe3 {[%emt 0:00:02]} Bb4+ {[%emt 0:00:05]} 5. Nc3 {[%emt 0:00:01]} Nge7 {[%emt 0:00:12]} 6. Bc4 {[%emt 0:00:02]} d6 {[%emt 0:00:07]} 7. Bd2 {[%emt 0:00:02]} O-O {[%emt 0:00:11]} 8. O-O-O {[%emt 0:00:02]} Na5 {[%emt 0:00:13]} 9. Bd3 {[%emt 0:00:25]} Be6 {[%emt 0:00:31]} 10. f4 {[%emt 0:00:13]} Bc5 {[%emt 0:00:11]} 11. Qg3 {[%emt 0:00:05]} f5 {[%emt 0:00:27]} 12. Nf3 {[%emt 0:00:15]} Nc4 {[%emt 0:00:24]} 13. Ng5 {[%emt 0:00:14]} Qd7 {[%emt 0:00:04]} 14. Qh4 {[%emt 0:00:17]} h6 {[%emt 0:00:03]} 15. Nxe6 {[%emt 0:00:03]} Qxe6 {[%emt 0:00:01]} 16. Bxc4 {[%emt 0:01:32]} 1-0

[Event "3rd Rio Open-Blitz 2024"]
[Site "Rio de Janeiro"]
[Date "2024.04.27"]
[Round "5.1"]
[White "Hoffman, Alejandro"]
[Black "De Siqueira, Luigy Lira"]
[Result "0-1"]
[ECO "A13"]
[WhiteElo "2379"]
[BlackElo "2274"]
[Annotator "TA"]
[PlyCount "74"]
[EventDate "2024.04.12"]
[EventType "swiss"]
[EventCountry "BRA"]
[SourceTitle "playchess.com"]
[Source "ChessBase"]
[SourceQuality "1"]
[TimeControl "180+2"]

{[%evp 16,74,18,9,9,0,0,-10,32,27,28,30,33,43,22,16,19,26,29,24,65,53,56,59,68,83,68,64,67,46,73,59,63,-21,103,102,115,120,376,61,77,-100,-75,-84,0,0,9,-20,0,0,0,0,0,-6423,-6399,-6287,-6198,-5502,-2914,-29997,-29998]} 1. Nf3 {[%emt 0:00:02]} Nf6 {[%emt 0:00:02]} 2. c4 {[%emt 0:00:01]} e6 {[%emt 0:00:01]} 3. g3 {[%emt 0:00:02]} d5 {[%emt 0:00:02]} 4. Bg2 {[%emt 0:00:02]} dxc4 {[%emt 0:00:02]} 5. Qc2 {[%emt 0:00:07]} Nbd7 {[%emt 0:00:04]} 6. Qxc4 {[%emt 0:00:02]} a6 {[%emt 0:00:02]} 7. O-O {[%emt 0:00:04]} b5 {[%emt 0:00:01]} 8. Qc2 {[%emt 0:00:03]} Bb7 {[%emt 0:00:02]} 9. a4 {[%emt 0:00:06]} Bd6 {[%emt 0:00:10]} 10. d3 {[%emt 0:00:03]} O-O {[%emt 0:00:03]} 11. e4 {[%emt 0:00:07]} e5 {[%emt 0:00:19] The position is equal.} 12. Nc3 {[%emt 0:00:02]} b4 {[%emt 0:00:02]} 13. Nb1 {[%emt 0:00:03]} a5 {[%emt 0:00:47]} 14. Nbd2 {[%emt 0:00:02]} Nb6 {[%emt 0:00:03]} 15. b3 {[%emt 0:00:06]} Nfd7 {[%emt 0:00:10]} 16. Bb2 {[%emt 0:00:02]} f6 {[%emt 0:00:03]} 17. Bh3 {[%emt 0:00:03]} Nc5 {[%emt 0:00:12]} 18. d4 {[%emt 0:00:08]} exd4 {[%emt 0:00:10]} 19. Nxd4 {[%emt 0:00:02]} Qe8 {[%emt 0:00:21][%cal Ob7a6]} 20. Rfe1 {[%emt 0:00:08]} Qh5 {[%emt 0:00:04]} 21. Bg2 {[%emt 0:00:02]} Rfe8 {[%emt 0:00:08]} 22. Nb5 {[%emt 0:00:12][%cal Oe4e5] Strongly threatening e5!} Rad8 {[%emt 0:00:20]} 23. Bd4 {[%emt 0:00:06][%cal Oe4e5] [#] aiming for e5!} Ne6 $1 {[%emt 0:00:18]} 24. Be3 {[%emt 0:00:17]} ({White should play} 24. Bxb6 $14 cxb6 25. Nxd6 Rxd6 26. e5) 24... Be5 {[%emt 0:00:08]} (24... Bc5 $1 $11 {remains equal.}) 25. Rac1 {[%emt 0:00:13]} Re7 {[%emt 0:00:06]} 26. f4 {[%emt 0:00:10]} Bd6 {[%emt 0:00:02][%mdl 8192] [#]} (26... Bd4 $16) 27. Bxb6 $2 {[%emt 0:00:10]} ({White should try} 27. e5 $18 fxe5 (27... Bxg2 $2 28. exd6 Red7 29. Kxg2 $18) 28. Bxb7 exf4 29. Bf2 (29. Bf3 Qf7 $18)) 27... cxb6 $14 {[%emt 0:00:02]} 28. Nc4 $2 {[%emt 0:00:04]} (28. Nxd6 $16 {is necessary to keep the advantage.} Rxd6 29. e5) 28... Bc5+ $17 {[%emt 0:00:01] A strong pair of Bishops.} 29. Kh1 {[%emt 0:00:02]} Nd4 {[%emt 0:00:04] Black is more active.} (29... Red7 $17 {Threatens to win with ...Rd3.} 30. Qe2 (30. e5 $2 Bxg2+ 31. Qxg2 fxe5 $19) 30... Qxe2 31. Rxe2 Rd1+ 32. Re1 Rxc1 33. Rxc1 Rd3) 30. Nxd4 $1 $11 {[%emt 0:00:04]} Rxd4 {[%emt 0:00:01]} 31. e5 {[%emt 0:00:07]} (31. Nxa5 {simplifies} bxa5 32. Qxc5 Rdxe4 33. Rxe4 Qxc5 34. Rxc5 Bxe4 35. Rxa5 Bxg2+ 36. Kxg2 Re3 37. Kf2) 31... Bxg2+ {[%emt 0:00:08]} 32. Qxg2 {[%emt 0:00:02][%cal Oc4a5]} fxe5 {[%emt 0:00:02]} 33. Nxe5 {[%emt 0:00:02]} h6 {[%emt 0:00:02]} 34. Nc6 $2 {[%emt 0:00:10][%mdl 8192]} (34. Qc2 $11) 34... Rxe1+ $19 {[%emt 0:00:02]} 35. Rxe1 {[%emt 0:00:01]} Rd1 {[%emt 0:00:01]} 36. Ne7+ {[%emt 0:01:02]} Bxe7 {[%emt 0:00:03]} 37. Qf1 {[%emt 0:00:05]} Qd5+ {[%emt 0:00:02] What a bad dream for White.   Weighted Error Value: White=0.67/Black=0.29 (precise) .  Loses game:     	White=1     	Black=1      Missed win:     	White=1     	---        Mistake:       	White=2     	Black=2      Inaccurate:     	White=1     	Black=3      OK:         	White=5     	Black=6      Best:        	White=2     	Black=2      Strong:       	White=1     	Black=1} 0-1

[Event "3rd Rio Open-Blitz 2024"]
[Site "Rio de Janeiro"]
[Date "2024.04.27"]
[Round "5.2"]
[White "Labussiere, Yago"]
[Black "Oliveira, Fernando Ventura"]
[Result "1-0"]
[ECO "A18"]
[WhiteElo "2184"]
[BlackElo "2044"]
[Annotator "NA RC"]
[PlyCount "125"]
[EventDate "2024.04.12"]
[EventType "swiss"]
[EventCountry "BRA"]
[SourceTitle "playchess.com"]
[Source "ChessBase"]
[SourceQuality "1"]
[TimeControl "180+2"]

1. c4 {[%emt 0:00:01]} Nf6 {[%emt 0:00:02]} 2. Nc3 {[%emt 0:00:01]} e6 {[%emt 0:00:01]} 3. e4 {[%emt 0:00:01]} d6 {[%emt 0:00:21]} 4. d4 {[%emt 0:00:01]} Nbd7 {[%emt 0:00:08]} 5. Nf3 {[%emt 0:00:03]} c5 {[%emt 0:00:01]} 6. d5 {[%emt 0:00:02]} exd5 {[%emt 0:00:03]} 7. exd5 {[%emt 0:00:01]} Be7 {[%emt 0:00:03]} 8. Bd3 {[%emt 0:00:01]} O-O {[%emt 0:00:02]} 9. O-O {[%emt 0:00:01]} h6 {[%emt 0:00:01]} 10. h3 {[%emt 0:00:01]} Re8 {[%emt 0:00:01]} 11. Bf4 {[%emt 0:00:01]} a6 {[%emt 0:00:07]} 12. a4 {[%emt 0:00:05]} Nf8 {[%emt 0:00:05]} 13. Qc2 {[%emt 0:00:06]} Bd7 {[%emt 0:00:05]} 14. Rfe1 {[%emt 0:00:05]} Rb8 {[%emt 0:00:04]} 15. Nd2 {[%emt 0:00:20]} b5 {[%emt 0:00:07]} 16. axb5 {[%emt 0:00:02]} axb5 {[%emt 0:00:01]} 17. cxb5 {[%emt 0:00:01]} g5 {[%emt 0:00:24]} 18. Bh2 {[%emt 0:00:04]} Kg7 {[%emt 0:00:01]} 19. Nc4 {[%emt 0:00:13]} Bc8 {[%emt 0:00:24]} 20. Na5 {[%emt 0:00:05]} Bb7 {[%emt 0:00:05]} 21. Nc6 {[%emt 0:00:06]} Bxc6 {[%emt 0:00:02]} 22. bxc6 {[%emt 0:00:04]} Ng6 {[%emt 0:00:07]} 23. Bxg6 {[%emt 0:00:03]} fxg6 {[%emt 0:00:03]} 24. Ra7 {[%emt 0:00:04]} Rc8 {[%emt 0:00:10]} 25. Re6 {[%emt 0:00:28]} Rc7 {[%emt 0:00:07]} 26. Rxc7 {[%emt 0:00:03]} Qxc7 {[%emt 0:00:02]} 27. Qe2 {[%emt 0:00:03]} Kf7 {[%emt 0:00:09]} 28. Nb5 {[%emt 0:00:09]} Qb8 {[%emt 0:00:04]} 29. c7 {[%emt 0:00:45]} Qa8 {[%emt 0:00:08]} 30. Bxd6 {[%emt 0:00:14]} Nxd5 {[%emt 0:00:32]} 31. Bxe7 {[%emt 0:00:17]} Rxe7 {[%emt 0:00:06]} 32. Rxe7+ {[%emt 0:00:05]} Nxe7 {[%emt 0:00:03]} 33. Nd6+ {[%emt 0:00:00]} Kf6 {[%emt 0:00:10]} 34. Qf3+ {[%emt 0:00:05]} Qxf3 {[%emt 0:00:10]} 35. gxf3 {[%emt 0:00:00]} Ke5 {[%emt 0:00:04]} 36. c8=Q {[%emt 0:00:02]} Nxc8 {[%emt 0:00:01]} 37. Nxc8 {[%emt 0:00:01]} Kd4 {[%emt 0:00:02]} 38. Nd6 {[%emt 0:00:09]} Kd3 {[%emt 0:00:02]} 39. Kf1 {[%emt 0:00:07]} Kc2 {[%emt 0:00:01]} 40. Ne4 {[%emt 0:00:08]} c4 {[%emt 0:00:03]} 41. Nd6 {[%emt 0:00:01]} Kxb2 {[%emt 0:00:03]} 42. Nxc4+ {[%emt 0:00:01]} Kc3 {[%emt 0:00:01]} 43. Ne5 {[%emt 0:00:00]} Kd4 {[%emt 0:00:02]} 44. Nxg6 {[%emt 0:00:02]} Kd5 {[%emt 0:00:01]} 45. Ke2 {[%emt 0:00:02]} Ke6 {[%emt 0:00:01]} 46. Ke3 {[%emt 0:00:01]} Kf6 {[%emt 0:00:03]} 47. Nf8 {[%emt 0:00:08]} Ke7 {[%emt 0:00:01]} 48. f4 {[%emt 0:00:08]} gxf4+ {[%emt 0:00:04]} 49. Kxf4 {[%emt 0:00:01]} Kxf8 {[%emt 0:00:00]} 50. Kf5 {[%emt 0:00:00]} Kf7 {[%emt 0:00:02]} 51. h4 {[%emt 0:00:01]} Kg7 {[%emt 0:00:01]} 52. h5 {[%emt 0:00:02]} Kf7 {[%emt 0:00:01]} 53. f4 {[%emt 0:00:01]} Kg7 {[%emt 0:00:01]} 54. Ke6 {[%emt 0:00:01]} Kg8 {[%emt 0:00:02]} 55. Kf6 {[%emt 0:00:01]} Kh7 {[%emt 0:00:01]} 56. Kf7 {[%emt 0:00:01]} Kh8 {[%emt 0:00:01]} 57. Kg6 {[%emt 0:00:01]} Kg8 {[%emt 0:00:01]} 58. Kxh6 {[%emt 0:00:01]} Kh8 {[%emt 0:00:00]} 59. Kg6 {[%emt 0:00:01]} Kg8 {[%emt 0:00:01]} 60. h6 {[%emt 0:00:00]} Kh8 {[%emt 0:00:01]} 61. f5 {[%emt 0:00:03]} Kg8 {[%emt 0:00:01]} 62. Kf6 {[%emt 0:00:03]} Kh7 {[%emt 0:00:02]} 63. Ke7 {[%emt 0:00:01]} 1-0

[Event "3rd Rio Open-Blitz 2024"]
[Site "Rio de Janeiro"]
[Date "2024.04.27"]
[Round "5.3"]
[White "Librelato, Kathie Goulart"]
[Black "Urquiza, Marcello de Albuquer"]
[Result "0-1"]
[ECO "B29"]
[WhiteElo "2165"]
[BlackElo "2005"]
[Annotator "NA RC"]
[PlyCount "54"]
[EventDate "2024.04.12"]
[EventType "swiss"]
[EventCountry "BRA"]
[SourceTitle "playchess.com"]
[Source "ChessBase"]
[SourceQuality "1"]
[TimeControl "180+2"]

1. e4 {[%emt 0:00:02]} c5 {[%emt 0:00:01]} 2. Nf3 {[%emt 0:00:01]} Nf6 {[%emt 0:00:01]} 3. Nc3 {[%emt 0:00:03]} Nc6 {[%emt 0:00:00]} 4. e5 {[%emt 0:00:05]} Ng4 {[%emt 0:00:03]} 5. d4 {[%emt 0:00:14]} cxd4 {[%emt 0:00:03]} 6. Nxd4 {[%emt 0:02:49]} Ngxe5 {[%emt 0:00:04]} 7. Bf4 {[%emt 0:00:00]} Nxd4 {[%emt 0:00:18]} 8. Qxd4 {[%emt 0:00:00]} Nc6 {[%emt 0:00:00]} 9. Qd2 {[%emt 0:00:00]} d6 {[%emt 0:00:21]} 10. O-O-O {[%emt 0:00:00]} g6 {[%emt 0:00:11]} 11. h4 {[%emt 0:00:00]} Bg7 {[%emt 0:00:11]} 12. h5 {[%emt 0:00:00]} Qa5 {[%emt 0:00:06]} 13. hxg6 {[%emt 0:00:00]} hxg6 {[%emt 0:00:02]} 14. Rxh8+ {[%emt 0:00:00]} Bxh8 {[%emt 0:00:00]} 15. Bc4 {[%emt 0:00:00]} Bxc3 {[%emt 0:00:43]} 16. bxc3 {[%emt 0:00:00]} Qa3+ {[%emt 0:00:01]} 17. Kb1 {[%emt 0:00:00]} Na5 {[%emt 0:00:01]} 18. Bb5+ {[%emt 0:00:00]} Bd7 {[%emt 0:00:01]} 19. Bxd7+ {[%emt 0:00:00]} Kxd7 {[%emt 0:00:01]} 20. Qd5 {[%emt 0:00:00]} Rc8 {[%emt 0:00:23]} 21. Qxf7 {[%emt 0:00:09]} Nc4 {[%emt 0:00:12]} 22. Bc1 {[%emt 0:00:02]} Qxc3 {[%emt 0:00:09]} 23. Qxg6 {[%emt 0:00:02]} Qb4+ {[%emt 0:00:07]} 24. Ka1 {[%emt 0:00:01]} Qc3+ {[%emt 0:00:15]} 25. Kb1 {[%emt 0:00:00]} Rc6 {[%emt 0:00:13]} 26. Qf5+ {[%emt 0:00:19]} Kc7 {[%emt 0:00:02]} 27. Qb5 {[%emt 0:00:09]} Rb6 {[%emt 0:00:02]} 0-1